bitfinex-derivatives/quotes_SOLF0:USTF0_20240818
["timestamp","ask_amount","ask_price","bid_price","bid_amount"]
[1723959937717,0.04455761,141.54,141.51,0.0448746]
[1723959938015,7.66455761,141.54,141.51,0.0448746]
[1723959938912,10.13705761,141.54,141.51,0.0448746]
[1723959941717,2.4726,141.53,141.51,0.0448746]
[1723959942108,7.66455761,141.54,141.51,0.0448746]
[1723959942616,0.04455761,141.54,141.51,0.0448746]
[1723959943911,2.51695761,141.54,141.51,0.0448746]
[1723959944910,2.51695761,141.54,141.51,2.5177746]
[1723959944911,0.04455761,141.54,141.51,2.5177746]
[1723959958417,2.51695761,141.54,141.51,2.5177746]
[1723959959928,2.51695761,141.54,141.51,0.0448746]
[1723959961926,0.04455761,141.54,141.51,2.5177746]
[1723959965923,0.04455761,141.54,141.51,7.6648746]
[1723959967031,0.04455761,141.54,141.52,2.4728]
[1723959975430,0.04455761,141.54,141.51,2.5177746]
[1723959975730,7.62,141.53,141.51,0.0448746]
[1723959975936,7.62,141.52,141.51,0.0448746]
[1723959976236,10.0928,141.52,141.51,0.0448746]
[1723959978739,2.4727,141.53,141.51,0.0448746]
[1723959978938,0.04455761,141.54,141.51,0.0448746]
[1723959979337,2.51695761,141.54,141.51,0.0448746]
[1723959981430,2.51695761,141.54,141.51,2.5177746]
[1723959981738,0.04455761,141.54,141.51,2.5177746]
[1723959985547,0.04455761,141.54,141.51,7.6648746]
[1723959985948,0.04455761,141.54,141.53,10.0926]
[1723959988155,0.04455761,141.54,141.53,7.62]
[1723959991757,0.04455761,141.54,141.53,10.0926]
[1723959992062,13.1243,141.59,141.53,10.0926]
[1723959992757,2.4718,141.58,141.53,10.0926]
[1723959993055,0.05403862,141.57,141.55,0.04559333]
[1723959996259,2.52593862,141.57,141.55,0.04559333]
[1723959997054,2.4721,141.56,141.55,0.04559333]
[1723959998072,10.0921,141.56,141.55,0.04559333]
[1723959998263,0.05403862,141.57,141.5,1.2648]
[1723959998462,7.62,141.56,141.5,1.2648]
[1723959998767,2.4724,141.55,141.51,2.4729]
[1723959999267,2.4724,141.55,141.52,0.04487987]
[1723960001464,7.62,141.54,141.52,0.04487987]
[1723960001868,7.62,141.53,141.46,11.84]
[1723960002867,2.4728,141.52,141.48,2.4734]
[1723960003072,0.0524698,141.51,141.48,2.51947606]
[1723960004561,0.0524698,141.51,141.48,0.04607606]
[1723960004974,2.4731,141.5,141.48,0.04607606]
[1723960005165,7.6724698,141.51,141.48,0.04607606]
[1723960005364,7.62,141.49,141.43,1.3523]
[1723960005574,7.62,141.47,141.41,11.84]
[1723960006671,0.04463017,141.45,141.43,0.05018012]
[1723960008372,0.04463017,141.45,141.43,10.14448012]
[1723960011071,0.04463017,141.45,141.43,2.52448012]
[1723960011774,0.04463017,141.45,141.43,0.05018012]
[1723960012382,7.66463017,141.45,141.43,0.05018012]
[1723960012676,7.66463017,141.45,141.38,5.5466]
[1723960012983,11.88463017,141.45,141.38,13.1666]
[1723960013583,2.4744,141.43,141.4,0.04785105]
[1723960014082,7.62,141.44,141.4,0.04785105]
[1723960014969,2.4744,141.43,141.4,0.04785105]
[1723960015175,7.62,141.44,141.4,0.04785105]
[1723960015578,2.4745,141.42,141.4,0.04785105]
[1723960018176,2.4744,141.43,141.4,7.66785105]
[1723960019481,2.4742,141.44,141.4,10.14265105]
[1723960019679,2.4742,141.44,141.4,7.66785105]
[1723960020176,2.4742,141.44,141.4,10.14265105]
[1723960021078,2.51863017,141.45,141.41,7.62]
[1723960022681,0.04463017,141.45,141.42,2.4745]
[1723960028183,0.04463017,141.45,141.4,2.79145105]
[1723960028779,2.51883017,141.45,141.41,2.4746]
[1723960028981,7.62,141.44,141.4,0.04785105]
[1723960029786,2.4744,141.43,141.4,2.52265105]
[1723960031588,7.62,141.43,141.4,0.04785105]
[1723960032179,2.4745,141.42,141.4,0.04785105]
[1723960032779,10.0944,141.43,141.4,0.04785105]
[1723960035290,2.4745,141.42,141.4,0.04785105]
[1723960038090,7.62,141.41,141.4,0.04785105]
[1723960038792,2.52686941,141.42,141.4,0.04785105]
[1723960038993,10.14686941,141.42,141.4,0.04785105]
[1723960039791,2.4747,141.41,141.4,0.04785105]
[1723960040493,10.0947,141.41,141.4,0.04785105]
[1723960042085,2.4751,141.39,141.35,1.3902]
[1723960042286,7.62,141.38,141.34,2.4757]
[1723960042602,7.62,141.38,141.32,11.2361329]
[1723960042603,10.0953,141.38,141.32,11.2361329]
[1723960042894,2.6075,141.42,141.35,2.4757]
[1723960043086,7.62,141.39,141.37,0.0458556]
[1723960043689,10.0951,141.39,141.37,0.0458556]
[1723960044093,2.4751,141.39,141.37,0.0458556]
[1723960045507,2.52314746,141.4,141.37,0.0458556]
[1723960048300,2.4751,141.39,141.37,0.0458556]
[1723960048895,2.52314746,141.4,141.37,0.0458556]
[1723960049796,0.04824746,141.4,141.37,0.0458556]
[1723960050905,2.52314746,141.4,141.37,0.0458556]
[1723960051401,2.4751,141.39,141.37,0.0458556]
[1723960051797,10.0951,141.39,141.37,0.0458556]
[1723960057405,0.04824746,141.4,141.38,2.4751]
[1723960057604,0.04824746,141.4,141.37,0.0458556]
[1723960057802,0.04824746,141.4,141.38,2.4751]
[1723960070514,7.62,141.39,141.37,0.0458556]
[1723960070717,7.62,141.38,141.37,0.0458556]
[1723960073729,7.62,141.38,141.32,4.22]
[1723960074115,7.62,141.36,141.32,4.22]
[1723960074327,10.0956,141.36,141.33,2.476]
[1723960074917,7.67422696,141.36,141.33,2.5289127]
[1723960075926,10.14982696,141.36,141.33,2.5289127]
[1723960085136,7.67422696,141.36,141.33,2.5289127]
[1723960086229,0.05422696,141.36,141.33,0.0529127]
[1723960087131,0.05422696,141.36,141.35,2.4757]
[1723960100931,7.67422696,141.36,141.34,2.4759]
[1723960115352,7.67422696,141.36,141.33,2.5289127]
[1723960116558,0.05422696,141.36,141.33,2.5289127]
[1723960116957,2.52982696,141.36,141.33,2.5289127]
[1723960118058,0.05422696,141.36,141.33,0.0529127]
[1723960118250,4.0547,141.44,141.35,7.62]
[1723960118452,2.4746,141.42,141.37,7.62]
[1723960118752,2.4746,141.42,141.38,2.4752]
[1723960119257,10.0944,141.43,141.39,2.475]
[1723960119552,0.05372748,141.41,141.39,2.52412175]
[1723960123061,0.05372748,141.41,141.4,2.4749]
[1723960123254,0.05372748,141.41,141.4,10.0949]
[1723960123456,7.62,141.45,141.41,2.4746]
[1723960123654,10.0941,141.45,141.41,2.4746]
[1723960124766,0.04649602,141.44,141.41,2.4746]
[1723960124960,0.04649602,141.44,141.42,2.4745]
[1723960126570,7.66649602,141.44,141.39,0.04912175]
[1723960126864,7.62,141.42,141.39,0.04912175]
[1723960127863,7.62,141.42,141.4,2.4747]
[1723960128962,7.62,141.41,141.39,0.04912175]
[1723960129162,7.62,141.41,141.31,13.1053]
[1723960129367,7.62,141.38,141.31,13.1053]
[1723960129670,7.62,141.38,141.36,2.4755]
[1723960130169,7.67206126,141.38,141.36,2.52883202]
[1723960130373,7.67206126,141.38,141.36,0.05333202]
[1723960133676,0.05206126,141.38,141.36,0.05333202]
[1723960134173,0.05206126,141.38,141.37,2.4754]
[1723960136871,0.05206126,141.38,141.36,2.52883202]
[1723960137477,0.05206126,141.38,141.36,0.05333202]
[1723960138573,0.05206126,141.38,141.36,2.52883202]
[1723960141176,0.05206126,141.38,141.37,2.4754]
[1723960144181,0.05206126,141.38,141.36,2.52883202]
[1723960147487,0.05206126,141.38,141.37,2.4754]
[1723960152090,0.05206126,141.38,141.36,0.05333202]
[1723960152091,0.05206126,141.38,141.36,2.52883202]
[1723960153992,0.05206126,141.38,141.37,2.4754]
[1723960167600,2.4746,141.42,141.39,2.475]
[1723960168794,2.52054967,141.42,141.39,2.52023162]
[1723960168999,0.04594967,141.42,141.39,2.52023162]
[1723960174603,0.04594967,141.42,141.4,2.4749]
[1723960175502,0.04594967,141.42,141.41,2.4747]
[1723960175702,11.84,141.46,141.39,7.66523162]
[1723960176010,11.84,141.46,141.39,7.62]
[1723960176404,11.84,141.46,141.39,8.9285]
[1723960176807,0.04646583,141.44,141.42,2.4744]
[1723960179121,7.66646583,141.44,141.42,2.4744]
[1723960179314,7.62,141.43,141.41,0.05105736]
[1723960180212,7.62,141.42,141.36,4.22]
[1723960180418,7.62,141.4,141.36,4.22]
[1723960181314,7.62,141.4,141.38,2.4751]
[1723960181315,0.04973837,141.39,141.38,2.4751]
[1723960182211,0.04973837,141.39,141.37,2.52003045]
[1723960189525,0.04973837,141.39,141.38,2.4752]
[1723960192123,0.04973837,141.39,141.37,2.51993045]
[1723960197230,7.66973837,141.39,141.37,0.04463045]
[1723960197423,7.62,141.38,141.37,0.04463045]
[1723960197623,7.62,141.38,141.31,11.84]
[1723960197930,7.62,141.36,141.34,2.4758]
[1723960198724,7.62,141.36,141.34,2.52924128]
[1723960199526,7.62,141.37,141.35,2.4757]
[1723960199726,14.36483837,141.39,141.35,2.4757]
[1723960200127,0.04973837,141.39,141.36,2.4755]
[1723960201536,0.04973837,141.39,141.37,2.4754]
[1723960206639,0.04973837,141.39,141.34,7.67344128]
[1723960207937,0.04973837,141.39,141.37,2.4753]
[1723960210037,7.66973837,141.39,141.37,2.4753]
[1723960211637,7.66973837,141.39,141.36,2.4755]
[1723960216244,7.62,141.37,141.34,0.05344128]
[1723960216434,7.62,141.36,141.34,0.05344128]
[1723960217731,7.62,141.37,141.34,2.52924128]
[1723960218742,10.14483837,141.39,141.35,2.4757]
[1723960218936,2.52483837,141.39,141.35,2.4757]
[1723960221545,7.62,141.38,141.35,2.4757]
[1723960223043,7.62,141.37,141.34,0.05344128]
[1723960223239,7.62,141.35,141.34,0.05344128]
[1723960223739,10.0957,141.35,141.34,0.05344128]
[1723960227148,2.476,141.34,141.31,2.4764]
[1723960228045,2.476,141.34,141.31,2.52336691]
[1723960229445,2.476,141.34,141.31,0.04696691]
[1723960229446,2.4761,141.33,141.31,0.04696691]
[1723960229950,10.0963,141.32,141.31,0.04696691]
[1723960233747,7.62,141.32,141.31,0.04696691]
[1723960234350,10.0963,141.32,141.31,0.04696691]
[1723960238751,10.0963,141.32,141.25,4.22]
[1723960238752,2.4766,141.3,141.25,4.22]
[1723960238957,10.0966,141.3,141.24,10.1942]
[1723960239750,0.05382674,141.28,141.26,0.04473394]
[1723960240149,0.05382674,141.28,141.26,2.52193394]
[1723960241858,0.05382674,141.28,141.26,0.04473394]
[1723960242153,2.53082674,141.28,141.26,0.04473394]
[1723960242351,0.05382674,141.28,141.26,2.52193394]
[1723960243554,0.05382674,141.28,141.27,2.4771]
[1723960246961,0.05382674,141.28,141.27,10.0971]
[1723960247162,11.84,141.34,141.27,7.62]
[1723960247459,2.476,141.34,141.29,7.62]
[1723960247656,7.62,141.34,141.3,2.4765]
[1723960248164,0.05228294,141.33,141.31,0.04849324]
[1723960248761,2.52838294,141.33,141.31,0.04849324]
[1723960249057,10.14838294,141.33,141.31,0.04849324]
[1723960249457,2.4763,141.32,141.31,0.04849324]
[1723960252262,10.14838294,141.33,141.31,0.04849324]
[1723960252464,2.52838294,141.33,141.31,0.04849324]
[1723960254360,10.14838294,141.33,141.31,0.04849324]
[1723960260365,7.67228294,141.33,141.31,2.52479324]
[1723960260569,7.67228294,141.33,141.31,0.04849324]
[1723960260570,0.05228294,141.33,141.31,0.04849324]
[1723960261266,0.05228294,141.33,141.32,2.4763]
[1723960262966,7.67228294,141.33,141.16,42.1813326]
[1723960263167,7.62,141.31,141.25,7.62]
[1723960263576,7.62,141.31,141.28,2.4768]
[1723960264069,7.67052013,141.31,141.29,2.4767]
[1723960265368,7.67052013,141.31,141.28,2.53045329]
[1723960265566,7.62,141.3,141.28,0.05355329]
[1723960266876,10.0966,141.3,141.28,0.05355329]
[1723960267078,7.62,141.3,141.28,0.05355329]
[1723960268369,10.0967,141.3,141.28,0.05355329]
[1723960269380,2.4768,141.29,141.28,0.05355329]
[1723960275375,10.0967,141.3,141.28,0.05355329]
[1723960280396,2.4767,141.3,141.28,0.05355329]
[1723960280689,10.14702013,141.31,141.28,2.53055329]
[1723960280888,7.67052013,141.31,141.28,0.05355329]
[1723960281987,10.14692013,141.31,141.28,2.53035329]
[1723960282891,0.05052013,141.31,141.28,0.05355329]
[1723960283284,0.05052013,141.31,141.3,2.4766]
[1723960313116,0.05052013,141.31,141.3,10.0966]
[1723960313308,10.0955,141.37,141.33,2.476]
[1723960314314,0.0516056,141.36,141.34,0.05123718]
[1723960316015,0.0516056,141.36,141.34,2.52713718]
[1723960316414,0.0516056,141.36,141.34,0.05123718]
[1723960317411,0.0516056,141.36,141.35,2.4757]
[1723960318314,5.6003,141.43,141.4,2.4748]
[1723960318522,7.62,141.44,141.37,7.62]
[1723960318816,10.0943,141.44,141.37,11.21618149]
[1723960319120,7.62,141.45,141.41,2.4746]
[1723960319315,10.094,141.45,141.41,2.4746]
[1723960319616,0.04634787,141.44,141.42,2.52452765]
[1723960320507,0.04634787,141.44,141.43,2.4743]
[1723960323918,0.04634787,141.44,141.42,2.52442765]
[1723960324120,7.66634787,141.44,141.42,6.72442765]
[1723960324424,7.66634787,141.44,141.42,2.52442765]
[1723960325118,7.66634787,141.44,141.42,0.05002765]
[1723960326225,7.62,141.43,141.42,0.05002765]
[1723960328622,0.04634787,141.44,141.42,0.05002765]
[1723960328927,7.66634787,141.44,141.42,0.05002765]
[1723960329224,7.62,141.43,141.42,0.05002765]
[1723960330320,15.24,141.43,141.35,3.9919]
[1723960330626,7.62,141.39,141.37,4.2]
[1723960331123,7.62,141.39,141.37,6.6752]
[1723960331324,7.62,141.39,141.37,2.4752]
[1723960331523,7.67431113,141.39,141.37,2.52081717]
[1723960333428,0.05431113,141.39,141.38,2.4752]
[1723960334130,0.05431113,141.39,141.37,2.52091717]
[1723960335725,0.05431113,141.39,141.38,2.4752]
[1723960340322,0.05431113,141.39,141.37,2.52091717]
[1723960340827,0.05431113,141.39,141.37,0.04561717]
[1723960341834,0.05431113,141.39,141.37,2.52101717]
[1723960348936,0.05431113,141.39,141.37,0.04561717]
[1723960349138,7.67431113,141.39,141.37,0.04561717]
[1723960350442,10.14931113,141.39,141.37,0.04561717]
[1723960353344,7.67431113,141.39,141.37,0.04561717]
[1723960354845,10.14941113,141.39,141.37,0.04561717]
[1723960355437,10.0952,141.38,141.37,0.04561717]
[1723960355647,7.62,141.38,141.32,4.2]
[1723960355950,7.62,141.36,141.33,2.476]
[1723960356849,7.67163779,141.36,141.33,2.53022539]
[1723960357250,0.05163779,141.36,141.34,2.4759]
[1723960361456,0.05163779,141.36,141.35,2.4757]
[1723960363755,0.05163779,141.36,141.34,2.4759]
[1723960364347,0.05163779,141.36,141.35,2.4757]
[1723960375556,0.05163779,141.36,141.34,2.4758]
[1723960392164,0.05163779,141.36,141.35,2.4757]
[1723960392374,7.62,141.42,141.35,7.62]
[1723960392765,2.4748,141.41,141.38,2.4751]
[1723960393073,7.62,141.42,141.38,2.4751]
[1723960393573,0.04737968,141.41,141.39,2.52355871]
[1723960395779,7.62,141.45,141.39,0.04855871]
[1723960396075,8.0925,141.48,141.4,7.62]
[1723960396265,7.62,141.46,141.4,7.62]
[1723960396873,0.0463349,141.44,141.42,0.04603641]
[1723960397872,0.0463349,141.44,141.42,2.52053641]
[1723960398081,7.6663349,141.44,141.42,2.52053641]
[1723960399477,7.62,141.43,141.42,0.04603641]
[1723960400570,10.0943,141.43,141.42,0.04603641]
[1723960403578,10.0943,141.43,141.34,7.62]
[1723960403579,2.4747,141.41,141.34,7.62]
[1723960403781,7.62,141.4,141.34,11.82]
[1723960403970,7.62,141.4,141.37,2.4752]
[1723960404474,7.66684048,141.4,141.37,2.52155206]
[1723960405477,0.04684048,141.4,141.38,2.4751]
[1723960419180,0.04684048,141.4,141.37,0.04635206]
[1723960419181,7.62,141.39,141.37,2.52165206]
[1723960421587,10.0952,141.39,141.37,0.04635206]
[1723960421788,7.62,141.38,141.37,0.04635206]
[1723960426396,10.0952,141.38,141.37,0.04635206]
[1723960433107,7.62,141.38,141.37,0.04635206]
[1723960438306,2.4751,141.39,141.37,0.04635206]
[1723960440309,7.62,141.38,141.37,0.04635206]
[1723960443807,7.62,141.38,141.31,4.0576]
[1723960444004,7.62,141.35,141.31,8.2576]
[1723960444305,7.62,141.35,141.33,2.476]
[1723960444902,7.62,141.35,141.33,2.52427613]
[1723960444903,7.66721119,141.35,141.33,2.52427613]
[1723960450216,7.66721119,141.35,141.34,2.4759]
[1723960450617,7.66721119,141.35,141.2,8.47927811]
[1723960450813,7.62,141.33,141.28,4.2]
[1723960451704,0.04642977,141.32,141.29,0.04676063]
[1723960452717,0.04642977,141.32,141.3,2.4765]
[1723960457511,0.04642977,141.32,141.29,0.04676063]
[1723960458311,0.04642977,141.32,141.31,2.4764]
[1723960462517,0.04642977,141.32,141.3,7.62]
[1723960462518,10.0956,141.36,141.33,2.4761]
[1723960463717,10.14463839,141.36,141.33,2.52971518]
[1723960468033,7.66903839,141.36,141.34,2.4759]
[1723960469223,10.14463839,141.36,141.34,2.4759]
[1723960474623,7.62,141.35,141.33,2.52961518]
[1723960475021,7.62,141.34,141.33,2.52961518]
[1723960476526,7.62,141.34,141.33,0.05361518]
[1723960487232,10.0959,141.34,141.33,0.05361518]
[1723960487739,7.62,141.34,141.33,0.05361518]
[1723960488229,2.4758,141.35,141.33,0.05361518]
[1723960488434,7.62,141.34,141.33,0.05361518]
[1723960502948,10.0958,141.35,141.33,0.05361518]
[1723960504749,2.4759,141.34,141.33,0.05361518]
[1723960505044,10.0959,141.34,141.33,0.05361518]
[1723960505241,10.0959,141.34,141.3,2.4765]
[1723960505449,7.62,141.31,141.28,2.4769]
[1723960505650,7.62,141.29,141.28,2.4769]
[1723960506749,7.66793637,141.3,141.28,2.4769]
[1723960507951,0.04793637,141.3,141.27,7.66527725]
[1723960508151,0.04793637,141.3,141.27,10.31167725]
[1723960508347,0.04793637,141.3,141.27,11.65477725]
[1723960509748,0.04793637,141.3,141.29,2.4768]
[1723960517664,0.04793637,141.3,141.29,10.0968]
[1723960518375,7.62,141.35,141.29,7.62]
[1723960518572,38.6050048,141.46,141.3,7.62]
[1723960518573,6.8776,141.39,141.3,7.62]
[1723960518769,6.8776,141.39,141.3,11.82]
[1723960518770,7.62,141.37,141.3,11.82]
[1723960518964,10.0955,141.37,141.33,2.4759]
[1723960519167,10.0955,141.37,141.3,11.82]
[1723960519365,10.0955,141.37,141.3,15.29838983]
[1723960519565,0.04559124,141.35,141.34,2.4759]
[1723960521476,0.04559124,141.35,141.33,2.476]
[1723960522870,0.04559124,141.35,141.34,2.4759]
[1723960525377,0.04559124,141.35,141.33,2.476]
[1723960525979,7.62,141.34,141.32,2.52793227]
[1723960526373,7.62,141.34,141.32,0.05173227]
[1723960527671,10.096,141.34,141.32,0.05173227]
[1723960528677,10.14139124,141.35,141.32,0.05173227]
[1723960530775,10.14139124,141.35,141.32,2.52793227]
[1723960533682,0.04559124,141.35,141.32,0.05173227]
[1723960534484,0.04559124,141.35,141.33,2.4759]
[1723960535687,7.66559124,141.35,141.33,2.4759]
[1723960536488,10.14139124,141.35,141.32,2.52783227]
[1723960537291,7.62,141.34,141.32,2.52783227]
[1723960537692,7.62,141.33,141.32,0.05173227]
[1723960538695,10.0961,141.33,141.32,0.05173227]
[1723960545298,2.4766,141.3,141.25,57.40890752]
[1723960545501,10.0966,141.3,141.25,57.40890752]
[1723960546094,10.0966,141.3,141.26,2.4773]
[1723960546295,2.52187132,141.29,141.27,0.05010372]
[1723960549602,10.097,141.28,141.27,0.05010372]
[1723960550599,10.097,141.28,141.22,1.3759]
[1723960550600,2.4772,141.27,141.22,1.3759]
[1723960550902,7.62,141.26,141.2,4.2]
[1723960551107,7.62,141.24,141.21,2.4781]
[1723960551802,7.66538538,141.24,141.21,2.52949587]
[1723960552405,10.14308538,141.24,141.21,2.52949587]
[1723960553309,7.66538538,141.24,141.21,2.52949587]
[1723960554401,7.66538538,141.24,141.22,2.478]
[1723960555601,0.04538538,141.24,141.21,0.05139587]
[1723960556404,0.04538538,141.24,141.23,2.4778]
[1723960562211,10.0972,141.27,141.25,2.4774]
[1723960562212,7.62,141.27,141.25,2.4774]
[1723960563109,7.62,141.27,141.24,2.4776]
[1723960563313,7.66932704,141.27,141.25,0.05013761]
[1723960563517,7.62,141.26,141.25,0.05013761]
[1723960569117,7.62,141.26,141.25,2.52763761]
[1723960569412,0.04932704,141.27,141.25,0.05013761]
[1723960569814,0.04932704,141.27,141.26,2.4773]
[1723960570409,7.62,141.3,141.27,2.477]
[1723960570613,7.62,141.3,141.25,7.67013761]
[1723960570614,7.62,141.3,141.25,0.05013761]
[1723960571313,7.62,141.3,141.27,2.4771]
[1723960571517,0.04893924,141.29,141.27,2.4771]
[1723960573817,0.04893924,141.29,141.28,2.477]
[1723960579627,4.2,141.34,141.27,7.62]
[1723960579823,7.62,141.35,141.28,7.62]
[1723960580126,7.62,141.35,141.32,2.4762]
[1723960580320,10.0957,141.35,141.32,2.4762]
[1723960580527,10.14657842,141.35,141.32,2.52451427]
[1723960584126,7.62,141.34,141.32,2.52451427]
[1723960587924,7.62,141.33,141.32,0.04831427]
[1723960590027,10.096,141.34,141.32,0.04831427]
[1723960590833,10.096,141.34,141.32,2.52461427]
[1723960594928,10.096,141.34,141.32,0.04831427]
[1723960597330,2.52667842,141.35,141.32,0.04831427]
[1723960597529,10.14667842,141.35,141.32,0.04831427]
[1723960605938,10.14667842,141.35,141.32,2.52461427]
[1723960606931,0.05087842,141.35,141.33,2.4761]
[1723960607642,7.67087842,141.35,141.33,2.4761]
[1723960610339,10.14657842,141.35,141.33,2.4761]
[1723960612339,10.0959,141.34,141.32,0.04831427]
[1723960615637,2.4761,141.33,141.32,0.04831427]
[1723960615942,7.62,141.34,141.26,6.9465]
[1723960616144,7.62,141.32,141.26,6.9465]
[1723960616947,0.04506286,141.3,141.28,0.04458184]
[1723960617948,0.04506286,141.3,141.29,2.4767]
[1723960618653,0.04506286,141.3,141.28,2.52148184]
[1723960631153,0.04506286,141.3,141.28,0.04458184]
[1723960632653,7.62,141.29,141.18,70.48371661]
[1723960632861,7.62,141.28,141.22,7.62]
[1723960633163,7.62,141.28,141.26,2.4772]
[1723960633857,7.67011387,141.28,141.26,2.52835289]
[1723960635660,10.14711387,141.28,141.26,0.05115289]
[1723960636267,7.67011387,141.28,141.26,0.05115289]
[1723960644578,7.67011387,141.28,141.26,2.52845289]
[1723960644890,0.05011387,141.28,141.26,2.52845289]
[1723960645579,0.05011387,141.28,141.27,2.4771]
[1723960651578,7.67011387,141.28,141.26,2.52835289]
[1723960657783,7.67011387,141.28,141.27,2.4771]
[1723960657984,0.05011387,141.28,141.27,2.4771]
[1723960662692,7.67011387,141.28,141.26,2.52835289]
[1723960667494,7.67011387,141.28,141.27,2.4771]
[1723960667695,0.05011387,141.28,141.27,2.4771]
[1723960674799,7.67011387,141.28,141.26,2.52835289]
[1723960685111,7.67011387,141.28,141.27,2.4771]
[1723960687115,0.05011387,141.28,141.27,2.4771]
[1723960689917,0.05011387,141.28,141.26,2.52835289]
[1723960707734,0.05011387,141.28,141.27,2.4771]
[1723960710441,4.18,141.34,141.26,0.05115289]
[1723960710736,7.62,141.33,141.25,12.49849392]
[1723960710939,10.0962,141.33,141.25,12.49849392]
[1723960711330,2.4763,141.32,141.29,2.4767]
[1723960711638,2.52688274,141.32,141.29,2.53103181]
[1723960711934,7.62,141.31,141.29,2.53103181]
[1723960720041,2.52688274,141.32,141.29,2.53103181]
[1723960720042,7.62,141.3,141.29,0.05433181]
[1723960730452,7.62,141.31,141.29,0.05433181]
[1723960734153,7.62,141.31,141.3,2.4766]
[1723960743058,7.62,141.31,141.29,0.05433181]
[1723960743364,7.62,141.3,141.29,0.05433181]
[1723960743858,7.62,141.3,141.24,1.3133]
[1723960744058,7.62,141.27,141.24,1.3133]
[1723960744451,7.62,141.27,141.25,2.4774]
[1723960745059,7.67005359,141.27,141.25,2.5246923]
[1723960747066,7.67005359,141.27,141.25,0.0472923]
[1723960750566,10.14725359,141.27,141.25,0.0472923]
[1723960750769,7.67005359,141.27,141.25,0.0472923]
[1723960750965,7.67005359,141.27,141.2,4.18]
[1723960750966,7.62,141.24,141.2,4.18]
[1723960751162,7.62,141.24,141.22,2.4779]
[1723960751869,7.62,141.24,141.22,2.52783188]
[1723960757760,7.62,141.25,141.22,2.52783188]
[1723960762678,7.62,141.25,141.23,2.4778]
[1723960762879,7.62,141.26,141.23,2.4778]
[1723960763073,7.62,141.26,141.22,0.04993188]
[1723960763572,7.62,141.26,141.23,2.4778]
[1723960763774,0.05005359,141.27,141.22,7.66993188]
[1723960764277,0.05005359,141.27,141.24,2.4776]
[1723960766878,0.05005359,141.27,141.25,2.4774]
[1723960769380,0.05005359,141.27,141.26,2.4773]
[1723960780707,7.67005359,141.27,141.26,2.4773]
[1723960800416,0.05005359,141.27,141.26,2.4773]
[1723960801912,0.05005359,141.27,141.25,0.05319921]
[1723960801913,7.67005359,141.27,141.25,0.05319921]
[1723960802117,7.62,141.26,141.25,0.05319921]
[1723960802418,7.67005359,141.27,141.25,0.05319921]
[1723960804013,7.62,141.26,141.25,0.05319921]
[1723960804914,10.0973,141.26,141.25,0.05319921]
[1723960806717,7.62,141.26,141.25,0.05319921]
[1723960807621,7.67005359,141.27,141.25,0.05319921]
[1723960809819,0.05005359,141.27,141.25,2.53069921]
[1723960810427,0.05005359,141.27,141.26,2.4773]
[1723960812226,7.67005359,141.27,141.25,2.53059921]
[1723960815030,7.67005359,141.27,141.25,0.05319921]
[1723960824224,10.14725359,141.27,141.25,0.05319921]
[1723960824422,7.62,141.26,141.25,0.05319921]
[1723960824829,10.0973,141.26,141.25,0.05319921]
[1723960830834,10.0973,141.26,141.18,1.3011]
[1723960830835,7.62,141.26,141.18,5.4611]
[1723960831139,7.62,141.21,141.18,4.16]
[1723960832036,7.67388994,141.21,141.19,2.4785]
[1723960839945,0.05388994,141.21,141.19,2.4785]
[1723960840342,6.2200199,141.29,141.19,7.62]
[1723960840538,4.16,141.28,141.22,7.62]
[1723960840736,4.16,141.28,141.19,4.16]
[1723960840737,1.35,141.31,141.27,2.477]
[1723960840941,7.62,141.33,141.26,7.62]
[1723960841142,7.62,141.33,141.28,7.62]
[1723960841644,0.04525567,141.32,141.29,0.04848867]
[1723960841844,0.04525567,141.32,141.29,2.52528867]
[1723960842740,0.04525567,141.32,141.3,2.4766]
[1723960845349,0.04525567,141.32,141.31,2.4764]
[1723960851446,7.62,141.35,141.33,2.4761]